{"text_format":"1","workbook":"xlsx","n_sheets":1,"sheets":["CSV_Tabelle"],"not_rendered":{"charts":0,"images":0,"macros":0,"external_links":0,"defined_names":0,"comments":0,"pivot_tables":0},"unopened":[],"bounds":{"document_bytes":16777216,"sheet_cells":100000,"rows_first":2000,"rows_last":500,"rows_between":2000,"halvings":0,"cell_chars":16384,"cell_head_chars":4096},"cells_cut":0,"cells_raw":0,"read":"whole","date_system":"1900"}

{"sheet":"CSV_Tabelle","index":0,"n_rows":7,"n_cols":52,"rows_kept":7,"cut":false,"hidden":false,"merged":[]}
[null,null,null,null,"Umsätze VR-Bank",null,null,null,null,null,null,null,null,null,null,null,null,null,null,null,null,null,null,null,null,null,null,null,null,null,null,null,null,null,null,null,null,null,null,null,null,null,null,null,null,null,null,null,null,null,null,"Formatiert"]
[null,null,null,null,null,null,null,null,null,null,null,null,null,null,null,null,null,null,null,null,"Umsatz-steuer","Privat","Tel/Kabel","Kfz-Kosten","Einkommen-steuer","Kranken-versich.","Haftpflicht-versich.","Spenden","Aussergew. Belastung.","Freinsheim Gemeinsam","Freinsheim Betrieb","Freinsheim Wohnung","Freinsheim Wasser ETG","Dürkh. Str. Gemeinsam","Dürkh. Str. Wohnung dir.","Dürkh. Str. Vermietung dir.","Dürkh. Str. Vermietung Umbau","Freinsheim Miete Hartwig","Freinsheim Miete Dudarova","Dannstadt Mieteinnahmen","Einlagen","Rente DRV","Rente Signal"]
[null,null,null,null,null,null,null,null,null,null,null,null,null,null,null,null,null,null,null,null,1780,1800,1801,1802,1810,1820,1827,1840,1850,1860,1861,1862,1864,1865,1866,1867,1869,1870,1875,1877,1890,1891,1892]
[null,null,null,null,null,null,null,null,null,null,null,null,null,null,null,null,null,null,null,null,{"$f":"SUMPRODUCT((ISNUMBER(U8:U1000))*(U8:U1000<>0))","v":0},{"$f":"SUMPRODUCT((ISNUMBER(V8:V1000))*(V8:V1000<>0))","v":0},0,0,0,0,0,0,0,0,0,0,0,0,0,0,0,0,0,0,0,0,0]
[null,null,null,null,null,null,null,null,null,null,null,null,null,null,null,null,null,null,null,null,{"$f":"SUM(U7:U1005)","v":0},{"$f":"SUM(V7:V1005)","v":0},0,0,0,0,0,0,0,0,0,0,0,0,0,0,0,0,0,0,0,0,0]
[null,null,null,null,null,null,null,null,null,null,null,null,null,null,null,null,null,null,null,null,{"$f":"SUBTOTAL(9,U8:U1006)","v":0},{"$f":"SUBTOTAL(9,V8:V1006)","v":0},0,0,0,0,0,0,0,0,0,0,0,0,0,0,0,0,0,0,0,0,0]
["Spalte1","Spalte2","Spalte3","Spalte4","Spalte5","Spalte6","Spalte7","Spalte8","Spalte9","Spalte10","Spalte11","Spalte12","Spalte13","Spalte14","Spalte15","Spalte16","Spalte17","Spalte18","Spalte19","Spalte20","Spalte21","Spalte22","Spalte23","Spalte24","Spalte25","Spalte26","Spalte27","Spalte28","Spalte29","Spalte30","Spalte31","Spalte32","Spalte33","Spalte34","Spalte35","Spalte36","Spalte37","Spalte38","Spalte39","Spalte40","Spalte41","Spalte42","Spalte43"]